bitfinex-derivatives/quotes_BTCF0:USTF0_20251130
["timestamp","ask_amount","ask_price","bid_price","bid_amount"]
[1764506640107,0.42446,91382.0,91381.0,0.04426]
[1764506640310,0.4354027,91382.0,91381.0,0.04426]
[1764506641201,0.42446,91382.0,91381.0,0.04426]
[1764506642109,0.42446,91382.0,91381.0,0.04526]
[1764506643312,0.42446,91382.0,91381.0,0.003]
[1764506643610,0.42446,91382.0,91381.0,0.02402]
[1764506644605,0.42446,91382.0,91381.0,0.04526]
[1764506644805,0.42446,91382.0,91381.0,0.04326]
[1764506645813,0.04446,91377.0,91376.0,0.0532033]
[1764506647407,0.04446,91377.0,91376.0,0.0562033]
[1764506648115,0.04446,91377.0,91376.0,0.0532033]
[1764506648415,0.04446,91377.0,91376.0,0.11369636]
[1764506648712,0.04446,91377.0,91376.0,0.11169636]
[1764506648906,0.04446,91377.0,91376.0,0.11469636]
[1764506649315,0.04446,91377.0,91376.0,0.0562033]
[1764506650316,0.04446,91377.0,91376.0,0.0532033]
[1764506650612,0.04446,91377.0,91376.0,0.0552033]
[1764506651008,0.04446,91390.0,91389.0,0.0532019]
[1764506651200,0.39446,91390.0,91389.0,0.0532019]
[1764506652212,0.39446,91390.0,91389.0,0.0552019]
[1764506653712,0.04446,91390.0,91389.0,0.0552019]
[1764506654515,0.01323,91422.0,91392.0,0.05638]
[1764506654710,0.04359,91401.0,91400.0,0.0540705]
[1764506656017,0.04359,91401.0,91400.0,0.04313]
[1764506656921,0.04359,91401.0,91400.0,0.04413]
[1764506658213,0.44359,91401.0,91400.0,0.001]
[1764506659620,0.0545314,91393.0,91392.0,0.05856813]
[1764506659919,0.0545314,91393.0,91368.0,0.01325]
[1764506659920,0.05682,91392.0,91388.0,0.05856813]
[1764506660120,0.42682,91392.0,91383.0,0.05856813]
[1764506660318,0.04359,91383.0,91381.0,0.05856813]
[1764506660525,0.04359,91376.0,91375.0,0.05856813]
[1764506660716,0.04359,91375.0,91374.0,0.07041242]
[1764506660914,0.39359,91375.0,91374.0,0.07041242]
[1764506661424,0.39359,91375.0,91374.0,0.01184429]
[1764506661625,0.04359,91374.0,91373.0,0.07991813]
[1764506661924,0.4145337,91374.0,91373.0,0.10169813]
[1764506662224,0.0545337,91374.0,91373.0,0.10169813]
[1764506662424,0.12359,91374.0,91373.0,0.10169813]
[1764506662619,0.12359,91374.0,91373.0,0.11317246]
[1764506662821,0.4245337,91374.0,91373.0,0.11317246]
[1764506663329,0.4245337,91374.0,91373.0,0.05460433]
[1764506663519,0.1345337,91374.0,91373.0,0.05460433]
[1764506663718,0.12359,91374.0,91373.0,0.05760433]
[1764506663919,0.04359,91374.0,91373.0,0.49617246]
[1764506664225,0.04359,91374.0,91373.0,0.13460433]
[1764506664420,0.04359,91374.0,91373.0,0.19420054]
[1764506664926,0.04359,91374.0,91373.0,0.13660433]
[1764506665126,0.04359,91374.0,91373.0,0.19520044]
[1764506666025,0.04474412,91384.0,91383.0,0.04352]
[1764506666230,0.04474412,91384.0,91383.0,0.02214]
[1764506666419,0.04458,91376.0,91375.0,0.10211013]
[1764506667630,0.04458,91376.0,91375.0,0.10411013]
[1764506669123,0.04458,91376.0,91375.0,0.10211013]
[1764506669430,0.04458,91376.0,91375.0,0.10411013]
[1764506669725,0.02294,91376.0,91375.0,0.10211013]
[1764506669927,0.02294,91376.0,91375.0,0.10311013]
[1764506670130,0.04458,91376.0,91375.0,0.04452]
[1764506670335,0.04458,91376.0,91375.0,0.04352]
[1764506670537,0.04458,91376.0,91375.0,0.04552]
[1764506670927,0.04458,91376.0,91375.0,0.04352]
[1764506671119,0.04458,91376.0,91375.0,0.04552]
[1764506672825,0.04474412,91384.0,91383.0,0.04352]
[1764506674538,0.00016412,91384.0,91383.0,0.04352]
[1764506674738,0.00016412,91384.0,91383.0,0.3644626]
[1764506674924,0.0555207,91399.0,91398.0,0.04352]
[1764506675124,0.4855207,91399.0,91398.0,0.04352]
[1764506675531,0.4855207,91399.0,91398.0,0.02214]
[1764506676637,0.2555207,91399.0,91398.0,0.02214]
[1764506676938,0.4655207,91399.0,91398.0,0.02214]
[1764506677429,0.4655207,91399.0,91391.0,0.05855848]
[1764506677430,0.04458,91392.0,91391.0,0.10207848]
[1764506677627,0.00999999,91440.0,91391.0,0.10207848]
[1764506677828,0.00999999,91440.0,91389.0,0.00016412]
[1764506677829,0.13750895,91478.0,91469.0,0.0109323]
[1764506678138,0.01395,91500.0,91485.0,0.0109304]
[1764506678338,0.01395,91500.0,91495.0,0.0109292]
[1764506678636,0.00895962,91496.0,91495.0,0.47213957]
[1764506678837,0.00895962,91496.0,91495.0,0.55990819]
[1764506679627,0.00895962,91496.0,91495.0,0.95990819]
[1764506681038,0.01395,91520.0,91505.0,0.010928]
[1764506681249,0.05853,91506.0,91505.0,0.04043302]
[1764506681434,0.44416614,91506.0,91505.0,0.04043302]
[1764506682329,0.44416614,91506.0,91505.0,0.010928]
[1764506683534,0.06251,91496.0,91495.0,0.01170535]
[1764506683740,0.06251,91492.0,91491.0,0.0109296]
[1764506683944,0.06251,91492.0,91486.0,0.00016399]
[1764506683945,0.06251,91487.0,91486.0,0.01109419]
[1764506684130,0.44814614,91487.0,91486.0,0.04845703]
[1764506684633,0.44814614,91487.0,91486.0,0.05969864]
[1764506684834,0.44814614,91487.0,91486.0,0.04876844]
[1764506686139,0.44814614,91487.0,91486.0,0.05176844]
[1764506687840,0.44814614,91487.0,91486.0,0.09003796]
[1764506688029,0.44814614,91487.0,91486.0,0.05176844]
[1764506689036,0.44814614,91487.0,91486.0,0.09002099]
[1764506689235,0.44814614,91487.0,91486.0,0.05176844]
[1764506692531,0.44814614,91487.0,91486.0,0.05155646]
[1764506696342,0.44814614,91487.0,91486.0,0.12899978]
[1764506697347,0.44814614,91487.0,91486.0,0.05155646]
[1764506699346,0.38910059,91487.0,91486.0,0.05155646]
[1764506699546,0.42936059,91487.0,91486.0,0.05155646]
[1764506701338,0.34079357,91487.0,91486.0,0.05155646]
[1764506701649,0.36304357,91487.0,91486.0,0.14947261]
[1764506702354,0.36304357,91487.0,91486.0,0.06248676]
[1764506702850,0.24495582,91487.0,91486.0,0.06248676]
[1764506704046,0.07646,91506.0,91505.0,0.06027]
[1764506704242,0.07646,91506.0,91505.0,0.20467978]
[1764506704442,0.07646,91506.0,91505.0,0.10834886]
[1764506705153,0.07646,91506.0,91505.0,0.03715086]
[1764506705542,0.07646,91506.0,91505.0,0.03915086]
[1764506706146,0.00442469,105070.0,91505.0,8.6e-07]
[1764506706355,0.0109267,91516.0,91515.0,0.0773333]
[1764506707245,0.0109272,91512.0,91511.0,0.0773333]
[1764506707451,0.0109272,91512.0,91511.0,0.02426]
[1764506708944,0.0119272,91512.0,91511.0,0.02426]
[1764506710055,0.0119272,91512.0,91510.0,0.09733804]
[1764506710252,0.0119272,91512.0,91511.0,0.02426]
[1764506711354,0.0109272,91512.0,91508.0,0.09733804]
[1764506711554,0.0109276,91508.0,91507.0,0.00016399]
[1764506712757,0.0119276,91508.0,91507.0,0.00016399]
[1764506713350,0.1113676,91508.0,91507.0,0.00016399]
[1764506716253,0.1113676,91508.0,91507.0,0.02940462]
[1764506716854,0.1113676,91508.0,91507.0,0.00016399]
[1764506717757,0.09944,91504.0,91484.0,0.07797531]
[1764506718060,0.09944,91504.0,91480.0,0.00999999]
[1764506718061,0.0109307,91482.0,91480.0,0.01326525]
[1764506718560,0.12157498,91481.0,91480.0,0.01326525]
[1764506718769,0.0109311,91479.0,91471.0,0.1142539]
[1764506719057,0.134441,91487.0,91486.0,0.11409]
[1764506719364,0.0109302,91487.0,91486.0,0.11409]
[1764506720555,0.00016324,91490.0,91489.0,0.11409]
[1764506721660,0.12650458,91490.0,91480.0,0.09767737]
[1764506721856,0.0109309,91481.0,91480.0,0.09767737]
[1764506722058,0.0109319,91472.0,91461.0,0.0109332]
[1764506722256,0.0109319,91472.0,91460.0,0.00999999]
[1764506722559,0.0109319,91472.0,91460.0,0.02093329]
[1764506722863,0.0109319,91472.0,91460.0,0.00999999]
[1764506723662,0.0109319,91472.0,91471.0,0.01350693]
[1764506724858,0.136653,91472.0,91471.0,0.01350693]
[1764506726860,0.002,91472.0,91471.0,0.16936693]
[1764506730466,0.0109307,91483.0,91482.0,0.15586]
[1764506730969,0.12675151,91483.0,91482.0,0.15586]
[1764506731963,0.11582081,91483.0,91482.0,0.15586]
[1764506732471,0.002,91483.0,91482.0,0.15586]
[1764506733670,0.00016324,91490.0,91489.0,0.15586]
[1764506733966,0.12575544,91490.0,91489.0,0.15586]
[1764506734771,0.00016324,91490.0,91489.0,0.15586]
[1764506734973,0.00216324,91490.0,91489.0,0.15586]
[1764506735174,0.00186324,91490.0,91489.0,0.15586]
[1764506736874,0.0109294,91494.0,91493.0,0.15586]
[1764506737757,0.0109297,91491.0,91489.0,0.001]
[1764506737959,0.0109309,91481.0,91480.0,0.12559]
[1764506738565,0.0109309,91481.0,91480.0,0.20425]
[1764506738982,0.0109309,91481.0,91476.0,0.04839]
[1764506738983,0.0109313,91477.0,91476.0,0.04839]
[1764506740068,0.0109318,91473.0,91471.0,0.01350693]
[1764506740373,0.11601908,91473.0,91472.0,0.20425]
[1764506740679,0.0109318,91473.0,91472.0,0.20425]
[1764506742680,0.0109303,91486.0,91485.0,0.15586]
[1764506742681,0.0109304,91486.0,91485.0,0.15586]
[1764506743179,0.12612963,91486.0,91485.0,0.15586]
[1764506744069,0.12812963,91486.0,91485.0,0.15586]
[1764506744376,0.15148153,91486.0,91485.0,0.15586]
[1764506744982,0.12812963,91486.0,91485.0,0.15586]
[1764506746271,0.15143783,91486.0,91485.0,0.15586]
[1764506748671,0.002,91486.0,91485.0,0.15586]
[1764506749469,0.0129303,91486.0,91485.0,0.15586]
[1764506749674,0.002,91486.0,91485.0,0.15586]
[1764506750778,0.010928,91505.0,91504.0,0.19925]
[1764506751176,0.15247229,91505.0,91504.0,0.19925]
[1764506753178,0.15547229,91505.0,91504.0,0.19925]
[1764506753375,0.02631135,91505.0,91504.0,0.19925]
[1764506753576,0.003,91505.0,91504.0,0.19925]
[1764506753778,0.07667315,91526.0,91525.0,0.19925]
[1764506753973,0.11089348,91526.0,91525.0,0.19925]
[1764506754173,0.22915518,91526.0,91525.0,0.19925]
[1764506755676,0.0109263,91519.0,91518.0,0.04307]
[1764506755875,0.1109263,91519.0,91518.0,0.04307]
[1764506756077,0.25945446,91519.0,91518.0,0.12088]
[1764506756587,0.25945446,91519.0,91518.0,0.19925]
[1764506756782,0.15945446,91519.0,91518.0,0.19925]
[1764506757486,0.16145446,91519.0,91518.0,0.19925]
[1764506757882,0.12723333,91519.0,91518.0,0.19925]
[1764506758280,0.0109258,91524.0,91523.0,0.15618]
[1764506758588,0.07667315,91526.0,91525.0,0.15618]
[1764506758780,0.00027315,91526.0,91525.0,0.15618]
[1764506760283,0.00027315,91526.0,91516.0,0.0001639]
[1764506760284,0.0109223,91553.0,91552.0,0.04307]
[1764506760488,0.4309223,91553.0,91552.0,0.19925]
[1764506760792,0.15356539,91553.0,91552.0,0.19925]
[1764506761094,0.54264309,91553.0,91552.0,0.19925]
[1764506761683,0.14264309,91553.0,91552.0,0.21265883]
[1764506761992,0.11939708,91553.0,91552.0,0.21265883]
[1764506762291,0.010922,91556.0,91555.0,0.15618]
[1764506762591,0.01119373,91566.0,91565.0,0.15618]
[1764506762885,0.54955978,91566.0,91565.0,0.15618]
[1764506763276,0.0109223,91553.0,91552.0,0.21265883]
[1764506763682,0.54618284,91553.0,91552.0,0.19925]
[1764506764394,0.14018284,91553.0,91552.0,0.19925]
[1764506765283,0.14018284,91553.0,91552.0,0.21237277]
[1764506768090,0.58018284,91553.0,91552.0,0.19925]
[1764506768294,0.14018284,91553.0,91552.0,0.21177562]
[1764506769594,0.12926054,91553.0,91552.0,0.21177562]
[1764506769792,0.0109211,91563.0,91562.0,0.15618]
[1764506770297,0.00017303,91566.0,91565.0,0.15618]
[1764506770691,0.11735207,91566.0,91565.0,0.15618]
[1764506771095,0.08874886,91602.0,91560.0,0.05306999]
[1764506771096,0.7477378,91590.0,91589.0,0.15618]
[1764506771310,0.42386637,91590.0,91589.0,0.15618]
[1764506771505,0.22245441,91590.0,91589.0,0.15618]
[1764506771709,0.0971,91590.0,91589.0,0.15618]
[1764506772001,0.0109178,91591.0,91590.0,0.15618]
[1764506772002,0.1080178,91591.0,91590.0,0.15618]
[1764506772423,0.0971,91603.0,91602.0,0.04307]
[1764506772608,0.0871,91594.0,91593.0,0.19925]
[1764506772809,0.5171,91594.0,91593.0,0.19925]
[1764506773003,0.2271,91594.0,91593.0,0.19925]
[1764506773213,0.21034658,91594.0,91593.0,0.19925]
[1764506773410,0.0706175,91593.0,91592.0,0.14648]
[1764506773720,0.20386408,91593.0,91592.0,0.14648]
[1764506774113,0.19386408,91593.0,91592.0,0.14648]
[1764506774509,0.15309658,91593.0,91592.0,0.14648]
[1764506774717,0.12324658,91593.0,91592.0,0.14648]
[1764506775120,0.18294658,91593.0,91592.0,0.14648]
[1764506775420,0.0597,91585.0,91584.0,0.1175]
[1764506775720,0.18477288,91585.0,91584.0,0.04307]
[1764506775916,0.18477288,91585.0,91584.0,0.1175]
[1764506776230,0.0597,91581.0,91580.0,0.0001638]
[1764506776435,0.4697,91581.0,91580.0,0.0001638]
[1764506776615,0.59275294,91581.0,91580.0,0.0001638]
[1764506776918,0.0597,91567.0,91566.0,0.18955]
[1764506777319,0.17931831,91567.0,91566.0,0.18955]
[1764506777709,0.0597,91561.0,91560.0,0.07443]
[1764506777913,0.4697,91561.0,91560.0,0.07443]
[1764506778223,0.25459635,91561.0,91560.0,0.14648]
[1764506778421,0.14474635,91561.0,91560.0,0.14648]
[1764506779511,0.00016348,91570.0,91560.0,0.14648]
[1764506779714,0.00016348,91570.0,91569.0,0.14648]
[1764506780523,0.03001348,91570.0,91569.0,0.14648]
[1764506781027,0.00016348,91570.0,91569.0,0.14648]
[1764506782309,0.00016348,91570.0,91569.0,0.14848]
[1764506782819,0.00016348,91570.0,91569.0,0.14648]
[1764506783019,0.00016348,91570.0,91569.0,0.14848]
[1764506783319,0.05382348,91570.0,91569.0,0.14848]
[1764506783515,0.54070474,91570.0,91569.0,0.14848]
[1764506783714,0.00016348,91570.0,91569.0,0.14848]
[1764506784019,0.1674407,91570.0,91569.0,0.14648]
[1764506784223,0.1674407,91570.0,91569.0,0.14848]
[1764506784418,0.4274407,91570.0,91569.0,0.07643]
[1764506784618,0.4274407,91570.0,91569.0,0.002]
[1764506784923,0.45016328,91570.0,91569.0,0.002]
[1764506785823,0.0585417,91558.0,91557.0,0.11382]
[1764506786023,0.4985417,91558.0,91557.0,0.11382]
[1764506786328,0.0585423,91553.0,91552.0,0.13665]
[1764506786515,0.45128731,91553.0,91552.0,0.13665]
[1764506786822,0.57796964,91553.0,91552.0,0.13665]
[1764506787326,0.31796964,91553.0,91552.0,0.13665]
[1764506787523,0.31796964,91553.0,91552.0,0.13765]
[1764506787925,0.20796964,91553.0,91552.0,0.13665]
[1764506788116,0.58796964,91553.0,91552.0,0.13665]
[1764506790329,0.58896964,91553.0,91552.0,0.13665]
[1764506790528,0.34896964,91553.0,91552.0,0.13665]
[1764506790827,0.16134964,91553.0,91552.0,0.13665]
[1764506791023,0.001,91553.0,91552.0,0.13665]
[1764506791215,0.0109215,91560.0,91557.0,0.04254]
[1764506791417,0.0109217,91558.0,91557.0,0.17919]
[1764506791819,0.13058668,91558.0,91557.0,0.17919]
[1764506792027,0.0109217,91558.0,91557.0,0.17919]
[1764506792426,0.08776368,91570.0,91569.0,0.13665]
[1764506792724,0.22843989,91570.0,91569.0,0.13665]
[1764506793430,0.03387046,91570.0,91569.0,0.13665]
[1764506794021,0.03387046,91570.0,91569.0,0.13865]
[1764506796223,0.03387046,91570.0,91569.0,0.13765]
[1764506796426,0.02295026,91570.0,91569.0,0.13765]
[1764506796626,0.0109195,91577.0,91576.0,0.13665]
[1764506796933,0.1270218,91577.0,91576.0,0.13665]
[1764506797233,0.6046418,91577.0,91576.0,0.13665]
[1764506797625,0.0585401,91571.0,91570.0,0.06816]
[1764506797932,0.04762,91570.0,91569.0,0.001]
[1764506798140,0.25762,91570.0,91569.0,0.13765]
[1764506798334,0.38317644,91570.0,91569.0,0.13765]
[1764506798925,0.38317644,91570.0,91569.0,0.13665]
[1764506799734,0.38417644,91570.0,91569.0,0.13665]
[1764506800324,0.36036644,91570.0,91569.0,0.13665]
[1764506800930,0.38417644,91570.0,91569.0,0.13665]
[1764506801640,0.56417644,91570.0,91569.0,0.13665]
[1764506801823,0.0585413,91561.0,91560.0,0.06816]
[1764506802028,0.0585413,91561.0,91560.0,0.13665]
[1764506802330,0.1729025,91561.0,91560.0,0.13665]
[1764506802631,0.2229025,91561.0,91560.0,0.13665]
[1764506803031,0.4329025,91561.0,91560.0,0.001]
[1764506803839,0.4329025,91561.0,91539.0,0.04254]
[1764506803840,0.0433724,91552.0,91539.0,0.04254]
[1764506804134,0.0282038,91540.0,91539.0,0.18134]
[1764506804839,0.4382038,91540.0,91539.0,0.18134]
[1764506805030,0.8682038,91540.0,91539.0,0.18134]
[1764506805231,0.6282038,91540.0,91539.0,0.18134]
[1764506805935,0.0282049,91531.0,91530.0,0.1815038]
[1764506806239,0.4182049,91531.0,91530.0,0.1815038]
[1764506807326,0.4182049,91531.0,91530.0,0.1939616]
[1764506808037,0.54073747,91531.0,91530.0,0.1939616]
[1764506808240,0.76073747,91531.0,91530.0,0.1939616]
[1764506808424,0.76073747,91531.0,91530.0,0.1949616]
[1764506808625,0.78386504,91531.0,91530.0,0.1949616]
[1764506809227,0.54073747,91531.0,91530.0,0.1949616]
[1764506809730,0.52345747,91531.0,91530.0,0.1949616]
[1764506809926,0.54073747,91531.0,91530.0,0.1949616]
[1764506810234,0.71173747,91531.0,91530.0,0.1939616]
[1764506811933,0.91173747,91531.0,91530.0,0.1939616]
[1764506812438,0.91173747,91531.0,91530.0,0.1815038]
[1764506813141,0.91173747,91531.0,91530.0,0.0001638]
[1764506813342,0.93484847,91531.0,91530.0,0.0001638]
[1764506813643,0.93484847,91531.0,91530.0,0.0668438]
[1764506814034,0.93484847,91531.0,91530.0,0.1389638]
[1764506814241,0.91173747,91531.0,91530.0,0.1389638]
[1764506814746,0.93484626,91531.0,91530.0,0.1389638]
[1764506815130,0.91173747,91531.0,91530.0,0.1389638]
[1764506818845,0.91073747,91531.0,91530.0,0.1389638]
[1764506819050,0.91173747,91531.0,91530.0,0.1389638]
[1764506819244,0.91173747,91531.0,91530.0,0.0001638]
[1764506819452,0.91273747,91531.0,91530.0,0.0001638]
[1764506819746,0.91273747,91531.0,91530.0,0.1389638]
[1764506820934,0.54073747,91531.0,91530.0,0.1389638]
[1764506821140,0.54273747,91531.0,91530.0,0.1389638]
[1764506821647,0.54173747,91531.0,91530.0,0.1389638]
[1764506822451,0.95173747,91531.0,91530.0,0.1389638]
[1764506822646,0.95073747,91531.0,91530.0,0.0668438]
[1764506822848,0.95173747,91531.0,91530.0,0.0001638]
[1764506823151,0.97482452,91531.0,91530.0,0.0001638]
[1764506823349,0.97482452,91531.0,91526.0,0.00027315]
[1764506823350,0.0282054,91527.0,91526.0,0.00027315]
[1764506823561,0.028208,91505.0,91504.0,0.17815]
[1764506823743,0.028208,91505.0,91496.0,0.03935]
[1764506823744,0.01728,91502.0,91496.0,0.03935]
[1764506824056,0.56415824,91502.0,91501.0,0.07940521]
[1764506824242,0.56415824,91502.0,91501.0,0.13893244]
[1764506824639,0.95415824,91502.0,91501.0,0.15180423]
[1764506825040,0.95415824,91502.0,91501.0,0.00213244]
[1764506825552,0.95415824,91502.0,91492.0,0.0668439]
[1764506825553,0.01728,91493.0,91492.0,0.0668439]
[1764506825743,0.8282094,91493.0,91492.0,0.0668439]
[1764506825942,0.94531,91493.0,91492.0,0.0668439]
[1764506826253,0.74531,91493.0,91492.0,0.1389639]
[1764506826551,0.74541072,91493.0,91492.0,0.0668439]
[1764506826748,0.74541072,91493.0,91492.0,0.0001639]
[1764506827251,0.74541072,91493.0,91492.0,0.0668439]
[1764506827656,0.74541072,91493.0,91492.0,0.0001639]
[1764506828045,0.74541072,91493.0,91492.0,0.0041639]
[1764506828556,0.74541072,91493.0,91492.0,0.1429639]
[1764506829247,0.49541072,91493.0,91492.0,0.1429639]
[1764506829451,0.65117072,91493.0,91492.0,0.1429639]
[1764506830250,0.66845072,91493.0,91492.0,0.1429639]
[1764506830456,0.65981072,91493.0,91492.0,0.1429639]
[1764506831046,0.65752132,91493.0,91492.0,0.1429639]
[1764506831248,0.66845072,91493.0,91492.0,0.1429639]
[1764506831457,0.36720132,91493.0,91492.0,0.1429639]
[1764506832655,0.37584132,91493.0,91492.0,0.1429639]
[1764506832851,0.38448132,91493.0,91492.0,0.1429639]
[1764506833654,0.80448132,91493.0,91492.0,0.1321339]
[1764506833850,0.38448132,91493.0,91492.0,0.1321339]
[1764506834050,0.37584132,91493.0,91492.0,0.1321339]
[1764506834354,0.36720132,91493.0,91492.0,0.1321339]
[1764506834558,0.25010072,91493.0,91492.0,0.1321339]
[1764506838662,0.0001639,91511.0,91493.0,0.0109293]
[1764506838965,0.6095112,91511.0,91510.0,0.12797]
[1764506839165,0.46300845,91511.0,91510.0,0.12797]
[1764506839368,0.56125778,91511.0,91510.0,0.12797]
[1764506839566,0.54112048,91511.0,91510.0,0.12797]
[1764506839860,0.53197114,91511.0,91510.0,0.12797]
[1764506841369,0.53397114,91511.0,91510.0,0.12797]
[1764506843859,0.41222456,91511.0,91510.0,0.12797]
[1764506846571,0.42484456,91511.0,91510.0,0.12797]
[1764506848175,0.44837538,91511.0,91510.0,0.12797]
[1764506849070,0.41853456,91511.0,91510.0,0.12797]
[1764506849269,0.41222456,91511.0,91510.0,0.12797]
[1764506850269,0.41222456,91511.0,91510.0,0.1388974]
[1764506850476,0.41222456,91511.0,91510.0,0.12797]
[1764506850679,0.42484456,91511.0,91510.0,0.12797]
[1764506853380,0.79484456,91511.0,91510.0,0.12797]
[1764506854778,0.57484456,91511.0,91510.0,0.12797]
[1764506855176,0.01262,91505.0,91504.0,0.15903]
[1764506855479,0.423548,91505.0,91504.0,0.15903]
[1764506855669,0.40631,91505.0,91504.0,0.15903]
[1764506855866,0.4,91505.0,91504.0,0.15903]
[1764506856179,0.41262,91505.0,91504.0,0.15903]
[1764506859672,0.83262,91505.0,91504.0,0.15903]
[1764506859877,0.59262,91505.0,91504.0,0.15903]
[1764506863176,0.41262,91505.0,91504.0,0.15903]
[1764506864783,0.40631,91505.0,91504.0,0.15903]
[1764506866285,0.42983813,91505.0,91504.0,0.15903]
[1764506866783,0.40631,91505.0,91504.0,0.15903]
[1764506867084,0.95505099,91505.0,91504.0,0.06207]
[1764506867270,0.95505099,91505.0,91504.0,0.1211]
[1764506868879,0.54505099,91505.0,91504.0,0.1211]
[1764506871785,0.53874099,91505.0,91504.0,0.1211]
[1764506872085,0.42352771,91505.0,91504.0,0.1211]
[1764506877191,0.4,91505.0,91504.0,0.1211]
[1764506883483,0.0109285,91501.0,91500.0,0.03222]
[1764506883685,0.4109285,91501.0,91500.0,0.03222]
[1764506884779,0.0109294,91493.0,91492.0,0.0534139]
[1764506885084,0.91173192,91493.0,91492.0,0.0001639]
[1764506885288,0.93527309,91493.0,91492.0,0.0001639]
[1764506885484,0.93527309,91493.0,91486.0,0.00027327]
[1764506885485,0.01093,91488.0,91486.0,0.00027327]
[1764506885685,0.02354117,91487.0,91486.0,0.00027327]
[1764506885887,1.01428303,91487.0,91486.0,0.00027327]
[1764506886496,1.01428303,91487.0,91486.0,0.012781]
[1764506886995,1.01428303,91487.0,91486.0,0.017781]
[1764506887196,0.73428303,91487.0,91486.0,0.017781]
[1764506889398,0.56428303,91487.0,91486.0,0.130061]
[1764506890194,0.54074186,91487.0,91486.0,0.017781]
[1764506890395,0.9743421,91487.0,91486.0,0.00527327]
[1764506890901,0.9743421,91487.0,91477.0,0.0001639]
[1764506890902,0.0109312,91478.0,91477.0,0.0001639]
[1764506891096,0.37099186,91478.0,91477.0,0.0001639]
[1764506891298,0.48844596,91478.0,91477.0,0.0001639]
[1764506891498,0.47751476,91478.0,91477.0,0.12462987]
[1764506892092,0.47851476,91478.0,91477.0,0.12462987]
[1764506892689,0.47751476,91478.0,91477.0,0.12662987]
[1764506894796,0.47851476,91478.0,91477.0,0.12462987]
[1764506895301,0.48844596,91478.0,91477.0,0.12462987]
[1764506895491,0.49044596,91478.0,91477.0,0.12462987]
[1764506895887,0.48844596,91478.0,91477.0,0.06559987]
[1764506896094,0.49044596,91478.0,91477.0,0.11961987]
[1764506896794,0.47951476,91478.0,91477.0,0.11961987]
[1764506897602,0.49044596,91478.0,91477.0,0.11961987]
[1764506898100,0.48944596,91478.0,91477.0,0.11961987]
[1764506898904,0.48844596,91478.0,91477.0,0.11961987]
[1764506899101,0.49044596,91478.0,91477.0,0.11961987]
[1764506899604,0.49044596,91478.0,91477.0,0.01234987]
[1764506900099,0.49044596,91478.0,91477.0,0.11544987]
[1764506901007,0.49144596,91478.0,91477.0,0.11544987]
[1764506901899,0.36306066,91478.0,91477.0,0.11544987]
[1764506904101,0.36206066,91478.0,91477.0,0.11544987]
[1764506907209,0.25206066,91478.0,91477.0,0.11544987]
[1764506907809,0.25106066,91478.0,91477.0,0.11544987]
[1764506909101,0.001,91478.0,91477.0,0.11544987]
[1764506909304,0.1089087,91499.0,91498.0,0.09911]
[1764506909612,0.4689087,91499.0,91498.0,0.09911]
[1764506910812,0.4699087,91499.0,91498.0,0.09911]
[1764506911213,0.4689087,91499.0,91498.0,0.09911]
[1764506911413,0.4699087,91499.0,91498.0,0.09911]
[1764506911809,0.4689087,91499.0,91498.0,0.09911]
[1764506912008,0.4719087,91499.0,91498.0,0.09911]
[1764506913310,0.4689087,91499.0,91498.0,0.09911]
[1764506913516,0.4699087,91499.0,91498.0,0.09911]
[1764506913809,0.45898,91499.0,91498.0,0.09911]
[1764506914015,0.45998,91499.0,91498.0,0.09911]
[1764506916517,0.45898,91499.0,91498.0,0.09911]
[1764506917508,0.09798,91491.0,91490.0,0.12827]
[1764506917708,0.44798,91491.0,91490.0,0.12827]
[1764506919514,0.44798,91491.0,91490.0,0.12927]
[1764506920421,0.11798,91491.0,91490.0,0.1401998]
[1764506920616,0.38,91491.0,91490.0,0.1401998]
[1764506920813,0.42899,91491.0,91490.0,0.1401998]
[1764506921811,0.38,91491.0,91490.0,0.1401998]
[1764506922416,0.38,91491.0,91490.0,0.12927]
[1764506922922,0.42899,91491.0,91490.0,0.12927]
[1764506923621,0.47798,91491.0,91490.0,0.12927]
[1764506924314,0.47798,91491.0,91490.0,0.001]
[1764506924615,0.47798,91491.0,91477.0,0.01218597]
[1764506924616,0.0109303,91486.0,91480.0,0.02093089]
[1764506924812,0.09287,91484.0,91483.0,0.12619]
[1764506925011,0.48287,91484.0,91483.0,0.12619]
[1764506926012,0.48287,91484.0,91483.0,0.12919]
[1764506927814,0.48287,91484.0,91483.0,0.10003]
[1764506934728,0.1037993,91494.0,91493.0,0.09703]
[1764506934923,0.5237993,91494.0,91493.0,0.09703]
[1764506935225,0.51287,91494.0,91493.0,0.09703]
[1764506935423,0.5237993,91494.0,91493.0,0.09703]
[1764506937322,0.51287,91494.0,91493.0,0.1079594]
[1764506937630,0.51287,91494.0,91493.0,0.09703]
[1764506939426,0.51287,91494.0,91493.0,0.1079594]
[1764506940031,0.26956,91494.0,91493.0,0.1079594]
[1764506940222,0.00027315,91526.0,91525.0,0.0109256]
[1764506940423,0.1215,91530.0,91529.0,0.0109251]
[1764506940627,0.1215,91530.0,91521.0,0.09725635]
[1764506940816,0.1215,91530.0,91527.0,0.0109253]
[1764506941321,0.1215,91536.0,91535.0,0.1079544]
[1764506941716,0.09353,91536.0,91535.0,0.1079544]
[1764506942321,0.1215,91536.0,91535.0,0.1079544]
[1764506943620,0.1215,91536.0,91535.0,0.1099544]
[1764506944020,0.09353,91536.0,91535.0,0.1099544]
[1764506950729,0.1215,91536.0,91535.0,0.1099544]
[1764506963035,0.1215,91536.0,91535.0,0.0618744]
[1764506963540,0.1215,91536.0,91535.0,0.1070544]
[1764506964244,0.1215,91536.0,91535.0,0.0618744]
[1764506965033,0.1215,91536.0,91535.0,0.1070544]
[1764506968845,0.1215,91536.0,91535.0,0.09613]
[1764506970539,0.1324243,91536.0,91535.0,0.09613]
[1764506970735,0.1324243,91536.0,91535.0,0.05095]
[1764506971344,0.1324243,91536.0,91535.0,0.002]
[1764506972434,0.1215,91536.0,91535.0,0.0602]
[1764506973545,0.1215,91536.0,91535.0,0.11794]
[1764506978847,0.5024243,91536.0,91535.0,0.06042696]
[1764506979548,0.5024243,91536.0,91535.0,0.002]
[1764506979748,0.5024243,91536.0,91535.0,0.06042696]
[1764506980158,0.5024243,91536.0,91535.0,0.002]
[1764506980847,0.1240446,91533.0,91532.0,0.05842696]
[1764506981042,0.4840446,91533.0,91532.0,0.05842696]